[Event "GER-ch Youth-U12 2022"]
[Site "Willingen"]
[Date "2022.06.09"]
[Round "7.11"]
[White "Wang, Arthur D"]
[Black "Seth, Aakrit"]
[Result "1/2-1/2"]
[ECO "B34"]
[WhiteElo "2090"]
[BlackElo "1435"]
[Annotator "TA"]
[PlyCount "114"]
[EventDate "2022.06.05"]
[EventType "swiss"]
[EventRounds "9"]
[EventCountry "GER"]
[SourceTitle "playchess.com"]
[Source "ChessBase"]
[SourceQuality "1"]
[TimeControl "40/4500+30:900+30"]

{[%evp 17,114,-16,-14,-29,41,-45,-11,-25,-18,-42,-36,-132,-104,-109,-101,-95,-97,-87,-86,-97,-44,-56,-60,-125,-124,-94,-89,-217,-214,-260,-246,-253,-248,-261,-255,-290,-292,-314,-288,-482,-482,-525,-500,-504,-477,-594,-595,-619,-614,-625,-538,-468,-469,-662,-614,-449,-258,-1026,-989,-856,-892,-820,-712,-579,-377,-1250,-1214,-1166,-1133,-1915,-1237,-3045,-2202,-1331,0,0,0,-5065,8,8,8,8,8,8,8,8,8,8,8,8,8,8,8,0,0,0,0,0,0]} 1. e4 {[%emt 0:00:00]} c5 {[%emt 0:00:00]} 2. Nf3 {[%emt 0:00:00]} g6 {[%emt 0:00:00]} 3. d4 {[%emt 0:00:00]} cxd4 {[%emt 0:00:00]} 4. Nxd4 {[%emt 0:00:00]} Bg7 {[%emt 0:00:00]} 5. Be3 {[%emt 0:00:00]} Nc6 {[%emt 0:00:00]} 6. Nc3 {[%emt 0:00:00]} Nf6 {[%emt 0:00:00]} 7. f3 {[%emt 0:00:00]} O-O {[%emt 0:00:00]} 8. Qd2 {[%emt 0:00:00]} d5 {[%emt 0:00:00]} 9. O-O-O {[%emt 0:00:00]} dxe4 {[%emt 0:05:42]} 10. fxe4 {[%emt 0:00:00] B34: Sicilian: Accelerated Dragon with 5 Nc3: sidelines.} Bg4 {[%emt 0:04:24]} (10... Nxd4 $11 11. Qxd4 Qxd4 12. Bxd4 b6) 11. Be2 {[%emt 0:00:00]} (11. Nxc6 $14 bxc6 12. Qxd8 Rfxd8 13. Rxd8+ Rxd8 14. Bc4) 11... Bxe2 {[%emt 0:06:11]} 12. Qxe2 {[%emt 0:00:00]} Qc7 {[%emt 0:07:50] [#]} 13. g4 $146 {[%emt 0:06:19]} ({Predecessor:} 13. Ndb5 Qe5 14. Bd4 Nxd4 15. Nxd4 a6 16. Rhf1 Rac8 17. g4 b5 18. Nf3 Qf4+ 19. Nd2 Qxg4 20. Qxg4 Nxg4 {0-1 (39) Van den Brink,N (1811)-Monroy Garzon,N (1957) Chess.com INT 2020}) 13... Rfd8 {[%emt 0:01:30]} 14. h4 {[%emt 0:02:51] [#]} (14. Nxc6 $15 bxc6 15. h3) 14... Nxe4 $1 {[%emt 0:07:43][%mdl 512]} 15. Nxe4 {[%emt 0:06:45] Threatens to win with Nxc6.} Nxd4 {[%emt 0:01:07]} 16. Bxd4 {[%emt 0:00:15]} Bxd4 {[%emt 0:03:14]} 17. h5 {[%emt 0:03:10]} Rac8 {[%emt 0:07:25]} 18. hxg6 {[%emt 0:01:09] [#]} fxg6 {[%emt 0:00:12]} (18... Be3+ $1 $17 19. Kb1 Rxd1+ 20. Rxd1 hxg6 $1) 19. Kb1 {[%emt 0:11:24]} Bg7 {[%emt 0:08:36]} 20. Ng5 {[%emt 0:01:15]} ({White should try} 20. c3 $15) 20... Rxd1+ $17 {[%emt 0:00:39]} 21. Rxd1 {[%emt 0:00:13]} Qb6 {[%emt 0:08:21][%csl Gg7][%cal Rb6b2]} 22. c3 {[%emt 0:05:06]} (22. b3 $17) 22... Bxc3 $1 $40 {[%emt 0:06:41][%mdl 128] Black has strong attack.} 23. Rc1 {[%emt 0:00:55] [#]} Rc6 $1 {[%emt 0:07:47]} 24. Ne4 {[%emt 0:06:26]} Bg7 {[%emt 0:00:28]} 25. Rxc6 {[%emt 0:00:45]} Qxc6 {[%emt 0:00:22][%mdl 4096] Endgame KQB-KQN} (25... bxc6 $2 {is the wrong capture.} 26. Nc3 $19) 26. Qd3 {[%emt 0:01:36]} h6 {[%emt 0:01:58]} 27. a3 {[%emt 0:00:39]} Qb6 {[%emt 0:00:48][%csl Gg7][%cal Rb6b2]} 28. Qc2 {[%emt 0:00:51]} (28. Qc4+ {was worth a try.} Kh7 29. Qe2) 28... Qg1+ {[%emt 0:00:26]} 29. Ka2 {[%emt 0:00:30]} Qxg4 {[%emt 0:00:14]} 30. Qc4+ {[%emt 0:00:19]} Kh8 {[%emt 0:00:23]} 31. Qd3 {[%emt 0:02:12]} Qe6+ {[%emt 0:00:40]} 32. Ka1 {[%emt 0:01:27]} Qb6 {[%emt 0:00:22][%csl Gg7][%cal Rb6b2]} 33. Qc2 {[%emt 0:00:16]} Qxb2+ {[%emt 0:00:26]} 34. Qxb2 {[%emt 0:00:08]} Bxb2+ {[%emt 0:00:03]} 35. Kxb2 {[%emt 0:00:11] KN-KP} h5 {[%emt 0:00:04]} 36. Kc3 {[%emt 0:00:41]} h4 {[%emt 0:00:31]} (36... Kg7 $142 37. Kd4 Kh6) 37. Nf2 $2 {[%emt 0:01:08]} (37. Kd2 Kg7 38. Ke3) 37... Kg7 {[%emt 0:00:19]} 38. Kd4 {[%emt 0:00:06]} Kf6 {[%emt 0:00:14] aiming for ...Kf5.} 39. Ke4 {[%emt 0:00:28]} g5 {[%emt 0:00:45][%cal Bg6g5,Bg5g4,Bg4g3][%mdl 32] Hoping for ...b5.} 40. Ng4+ {[%emt 0:00:06]} Ke6 {[%emt 0:00:15]} 41. Ne5 $2 {[%emt 0:15:57]} (41. a4 b6 42. Nf2) 41... b5 {[%emt 0:16:35]} 42. Nc6 {[%emt 0:00:48]} a6 {[%emt 0:01:49]} 43. Nb8 {[%emt 0:00:25]} g4 {[%emt 0:00:44]} 44. Kf4 {[%emt 0:00:20]} g3 {[%emt 0:00:27]} 45. Kf3 {[%emt 0:00:06]} Kf5 $2 {[%emt 0:00:40]} (45... Kd5 $19 46. Nxa6 e5 47. Nb4+ Kc4) 46. Nxa6 $11 {[%emt 0:00:22]} e5 {[%emt 0:00:15] ( -> ...e4+)} 47. Nc5 {[%emt 0:00:04][%mdl 8192] [#] Against e4+} (47. Nc7 $11) 47... Kf6 $2 {[%emt 0:03:27]} ({Better is} 47... e4+ $1 $19 48. Kg2 Kf4 49. Ne6+ Kg4) 48. Ne4+ {[%emt 0:00:28] The position is equal.} Ke6 {[%emt 0:00:22]} 49. Nc3 {[%emt 0:00:43]} Kf5 {[%emt 0:02:39]} 50. Nxb5 {[%emt 0:01:44] KN-K3P} e4+ {[%emt 0:01:01]} 51. Kg2 {[%emt 0:00:13]} Kg4 {[%emt 0:00:22]} 52. Nd4 {[%emt 0:00:59] Intending a4 and mate.} h3+ {[%emt 0:00:00]} 53. Kg1 {[%emt 0:00:00] White threatens a4 and mate.} e3 {[%emt 0:00:00]} 54. a4 {[%emt 0:00:00] Threatening mate with a5.} g2 {[%emt 0:00:00]} 55. a5 {[%emt 0:00:00] White wants to mate with a6.} Kg3 {[%emt 0:00:00][%csl Gg3][%cal Rh3h2]} 56. Ne2+ $1 {[%emt 0:00:00]} Kf3 {[%emt 0:00:00]} 57. Nd4+ {[%emt 0:00:00]} Kg3 {[%emt 0:00:00] Weighted Error Value: White=0.87/Black=0.48} 1/2-1/2

[Event "GER-ch Youth-U12 2022"]
[Site "Willingen"]
[Date "2022.06.09"]
[Round "7.12"]
[White "Herrmann, Arthur"]
[Black "Pimenov, Danil"]
[Result "1/2-1/2"]
[ECO "B33"]
[WhiteElo "1507"]
[BlackElo "1337"]
[Annotator "NA RC COMBH"]
[PlyCount "56"]
[EventDate "2022.06.05"]
[EventType "swiss"]
[EventRounds "9"]
[EventCountry "GER"]
[SourceTitle "playchess.com"]
[Source "ChessBase"]
[SourceQuality "1"]
[TimeControl "40/4500+30:900+30"]

1. e4 {[%emt 0:00:00]} c5 {[%emt 0:00:00]} 2. Nf3 {[%emt 0:00:00]} Nc6 {[%emt 0:00:00]} 3. d4 {[%emt 0:00:00]} cxd4 {[%emt 0:00:00]} 4. Nxd4 {[%emt 0:00:00]} Nf6 {[%emt 0:00:00]} 5. Nc3 {[%emt 0:00:00]} e5 {[%emt 0:00:00]} 6. Ndb5 {[%emt 0:00:00]} d6 {[%emt 0:00:00]} 7. Bg5 {[%emt 0:00:00]} a6 {[%emt 0:00:00]} 8. Na3 {[%emt 0:00:00]} b5 {[%emt 0:00:00]} 9. Nd5 {[%emt 0:00:00]} Be7 {[%emt 0:00:00]} 10. Bxf6 {[%emt 0:00:00]} Bxf6 {[%emt 0:00:00]} 11. c3 {[%emt 0:00:00]} O-O {[%emt 0:00:00]} 12. Nc2 {[%emt 0:00:00]} g6 {[%emt 0:00:00]} 13. a4 {[%emt 0:00:00]} bxa4 {[%emt 0:00:00]} 14. Rxa4 {[%emt 0:00:00]} Bg7 {[%emt 0:00:00]} 15. Bc4 {[%emt 0:00:00]} Bb7 {[%emt 0:00:00]} 16. Nce3 {[%emt 0:01:01]} Ne7 {[%emt 0:00:00]} 17. O-O {[%emt 0:06:01]} Nxd5 {[%emt 0:00:00]} 18. Nxd5 {[%emt 0:01:59]} Kh8 {[%emt 0:00:00]} 19. Qe2 {[%emt 0:21:20]} f5 {[%emt 0:02:09]} 20. exf5 {[%emt 0:03:54]} gxf5 {[%emt 0:00:57]} 21. Rd1 {[%emt 0:02:57]} e4 {[%emt 0:03:15]} 22. Qe3 {[%emt 0:22:47]} Qe8 {[%emt 0:06:18]} 23. Rb4 {[%emt 0:02:02]} Bxd5 {[%emt 0:01:28]} 24. Bxd5 {[%emt 0:00:42]} Rb8 {[%emt 0:01:35]} 25. Rxb8 {[%emt 0:01:15]} Qxb8 {[%emt 0:00:07]} 26. b3 {[%emt 0:02:10]} Qc7 {[%emt 0:02:33]} 27. c4 {[%emt 0:02:22]} a5 {[%emt 0:01:00]} 28. Rd2 {[%emt 0:02:44]} Qc5 {[%emt 0:02:32]} 1/2-1/2

[Event "GER-ch Youth-U12 2022"]
[Site "Willingen"]
[Date "2022.06.09"]
[Round "7.13"]
[White "Riechenberg, Sebastian"]
[Black "Burkart, Lloyd Shang"]
[Result "0-1"]
[ECO "B44"]
[WhiteElo "1668"]
[BlackElo "1559"]
[Annotator "NA RC COMBH"]
[PlyCount "52"]
[EventDate "2022.06.05"]
[EventType "swiss"]
[EventRounds "9"]
[EventCountry "GER"]
[SourceTitle "playchess.com"]
[Source "ChessBase"]
[SourceQuality "1"]
[TimeControl "40/4500+30:900+30"]

1. e4 {[%emt 0:00:00]} c5 {[%emt 0:00:00]} 2. Nf3 {[%emt 0:00:00]} e6 {[%emt 0:00:00]} 3. d4 {[%emt 0:00:00]} cxd4 {[%emt 0:00:00]} 4. Nxd4 {[%emt 0:00:00]} Nc6 {[%emt 0:00:00]} 5. Nxc6 {[%emt 0:00:00]} bxc6 {[%emt 0:00:00]} 6. c4 {[%emt 0:00:00]} Nf6 {[%emt 0:00:00]} 7. Nc3 {[%emt 0:00:00]} Bb4 {[%emt 0:05:55]} 8. Bd3 {[%emt 0:07:28]} e5 {[%emt 0:04:09]} 9. O-O {[%emt 0:01:26]} O-O {[%emt 0:00:39]} 10. Bg5 {[%emt 0:02:51]} h6 {[%emt 0:01:00]} 11. Bh4 {[%emt 0:01:32]} d6 {[%emt 0:08:35]} 12. Rb1 {[%emt 0:04:11]} Be6 {[%emt 0:07:42]} 13. a3 {[%emt 0:01:46]} Bxc3 {[%emt 0:03:53]} 14. bxc3 {[%emt 0:00:21]} Rb8 {[%emt 0:00:40]} 15. Rxb8 {[%emt 0:00:25]} Qxb8 {[%emt 0:00:15]} 16. Bxf6 {[%emt 0:00:06]} gxf6 {[%emt 0:00:09]} 17. f4 {[%emt 0:01:49]} Kh7 {[%emt 0:05:04]} 18. Kh1 {[%emt 0:04:35]} Rg8 {[%emt 0:07:28]} 19. f5 {[%emt 0:11:35]} Bc8 {[%emt 0:04:13]} 20. Qd2 {[%emt 0:07:30]} Qb3 {[%emt 0:03:49]} 21. Be2 {[%emt 0:00:40]} Qxa3 {[%emt 0:01:13]} 22. Bh5 {[%emt 0:04:46]} Rg7 {[%emt 0:00:48]} 23. Bd1 {[%emt 0:08:22]} Qc5 {[%emt 0:05:49]} 24. Rf3 {[%emt 0:08:10]} Qxc4 {[%emt 0:04:33]} 25. Bc2 {[%emt 0:00:29]} Ba6 {[%emt 0:10:44]} 26. Qxd6 {[%emt 0:02:18]} Qe2 {[%emt 0:00:09]} 0-1

[Event "GER-ch Youth-U12 2022"]
[Site "Willingen"]
[Date "2022.06.09"]
[Round "7.14"]
[White "Noennig, Jakob"]
[Black "Mukazhanov, Mansur"]
[Result "0-1"]
[ECO "B35"]
[WhiteElo "1556"]
[BlackElo "1279"]
[Annotator "NA RC COMBH"]
[PlyCount "68"]
[EventDate "2022.06.05"]
[EventType "swiss"]
[EventRounds "9"]
[EventCountry "GER"]
[SourceTitle "playchess.com"]
[Source "ChessBase"]
[SourceQuality "1"]
[TimeControl "40/4500+30:900+30"]

1. e4 {[%emt 0:00:00]} c5 {[%emt 0:00:00]} 2. Nf3 {[%emt 0:00:00]} Nc6 {[%emt 0:00:00]} 3. d4 {[%emt 0:00:00]} cxd4 {[%emt 0:00:00]} 4. Nxd4 {[%emt 0:00:00]} g6 {[%emt 0:00:00]} 5. Nc3 {[%emt 0:00:00]} Bg7 {[%emt 0:00:00]} 6. Be3 {[%emt 0:00:00]} Nf6 {[%emt 0:00:00]} 7. Bc4 {[%emt 0:00:00]} d6 {[%emt 0:00:00]} 8. Bb3 {[%emt 0:00:00]} Ng4 {[%emt 0:00:00]} 9. Nxc6 {[%emt 0:14:47]} bxc6 {[%emt 0:00:00]} 10. Qf3 {[%emt 0:02:50]} O-O {[%emt 0:00:00]} 11. O-O-O {[%emt 0:06:29]} Nxe3 {[%emt 0:00:00]} 12. Qxe3 {[%emt 0:00:13]} c5 {[%emt 0:00:18]} 13. h4 {[%emt 0:08:46]} h5 {[%emt 0:00:10]} 14. f3 {[%emt 0:02:08]} Kh7 {[%emt 0:03:18]} 15. Kb1 {[%emt 0:03:10]} Bh6 {[%emt 0:00:49]} 16. Qe2 {[%emt 0:00:43]} Qd7 {[%emt 0:01:46]} 17. Na4 {[%emt 0:02:53]} Rb8 {[%emt 0:01:09]} 18. Nxc5 {[%emt 0:01:21]} Qc6 {[%emt 0:00:12]} 19. Nd3 {[%emt 0:01:10]} a5 {[%emt 0:00:27]} 20. g4 {[%emt 0:06:24]} Ba6 {[%emt 0:00:58]} 21. a4 {[%emt 0:06:42]} Rb6 {[%emt 0:05:30]} 22. gxh5 {[%emt 0:00:36]} Rfb8 {[%emt 0:00:08]} 23. hxg6+ {[%emt 0:00:50]} fxg6 {[%emt 0:00:07]} 24. Qg2 {[%emt 0:02:33]} d5 {[%emt 0:07:04]} 25. exd5 {[%emt 0:02:18]} Qf6 {[%emt 0:01:34]} 26. Nc5 {[%emt 0:06:47]} Bg7 {[%emt 0:02:09]} 27. c3 {[%emt 0:01:12]} Rxb3 {[%emt 0:00:09]} 28. Nxb3 {[%emt 0:00:17]} Rxb3 {[%emt 0:00:03]} 29. Rc1 {[%emt 0:00:58]} Qf4 {[%emt 0:02:53]} 30. Qg4 {[%emt 0:01:40]} Qd2 {[%emt 0:01:10]} 31. Rc2 {[%emt 0:01:17]} Bd3 {[%emt 0:00:43]} 32. Rhc1 {[%emt 0:01:25]} Qxc3 {[%emt 0:00:27]} 33. Ka1 {[%emt 0:03:40]} Ra3+ {[%emt 0:00:12]} 34. Kb1 {[%emt 0:00:14]} Qxb2# {[%emt 0:01:04]} 0-1

[Event "GER-ch Youth-U12 2022"]
[Site "Willingen"]
[Date "2022.06.09"]
[Round "7.15"]
[White "Kulkovets, Roman"]
[Black "Aweh, Mads"]
[Result "1/2-1/2"]
[ECO "B33"]
[WhiteElo "1099"]
[BlackElo "1438"]
[Annotator "NA RC COMBH"]
[PlyCount "94"]
[EventDate "2022.06.05"]
[EventType "swiss"]
[EventRounds "9"]
[EventCountry "GER"]
[SourceTitle "playchess.com"]
[Source "ChessBase"]
[SourceQuality "1"]
[TimeControl "40/4500+30:900+30"]

1. e4 {[%emt 0:00:00]} c5 {[%emt 0:00:00]} 2. Nf3 {[%emt 0:00:00]} Nc6 {[%emt 0:00:00]} 3. d4 {[%emt 0:00:00]} cxd4 {[%emt 0:00:00]} 4. Nxd4 {[%emt 0:00:00]} Nf6 {[%emt 0:00:00]} 5. Nc3 {[%emt 0:00:00]} e5 {[%emt 0:00:00]} 6. Ndb5 {[%emt 0:00:00]} d6 {[%emt 0:00:00]} 7. Nd5 {[%emt 0:00:00]} Nxd5 {[%emt 0:00:00]} 8. exd5 {[%emt 0:00:00]} Ne7 {[%emt 0:00:00]} 9. c3 {[%emt 0:00:00]} Nf5 {[%emt 0:00:00]} 10. Qa4 {[%emt 0:00:00]} Bd7 {[%emt 0:00:00]} 11. Bd3 {[%emt 0:00:00]} Nh4 {[%emt 0:09:16]} 12. g3 {[%emt 0:00:00]} Nf3+ {[%emt 0:04:31]} 13. Ke2 {[%emt 0:00:00]} a6 {[%emt 0:00:35]} 14. Kxf3 {[%emt 0:00:00]} axb5 {[%emt 0:02:55]} 15. Qb4 {[%emt 0:00:00]} Ra4 {[%emt 0:05:17]} 16. Qb3 {[%emt 0:23:00]} e4+ {[%emt 0:01:09]} 17. Bxe4 {[%emt 0:00:03]} Qf6+ {[%emt 0:00:45]} 18. Bf4 {[%emt 0:00:14]} g5 {[%emt 0:00:35]} 19. Rhe1 {[%emt 0:00:14]} Be7 {[%emt 0:02:19]} 20. Kg2 {[%emt 0:00:54]} gxf4 {[%emt 0:01:10]} 21. Bf3 {[%emt 0:02:00]} O-O {[%emt 0:01:21]} 22. Re2 {[%emt 0:02:39]} fxg3 {[%emt 0:08:15]} 23. hxg3 {[%emt 0:00:10]} Bd8 {[%emt 0:04:19]} 24. Rh1 {[%emt 0:01:06]} Re8 {[%emt 0:06:41]} 25. Qc2 {[%emt 0:13:07]} Qg6 {[%emt 0:00:47]} 26. Rxe8+ {[%emt 0:00:14]} Bxe8 {[%emt 0:00:12]} 27. Qe2 {[%emt 0:00:14]} Bd7 {[%emt 0:01:41]} 28. b3 {[%emt 0:00:24]} Ra8 {[%emt 0:06:31]} 29. Be4 {[%emt 0:00:18]} f5 {[%emt 0:02:25]} 30. Bd3 {[%emt 0:00:22]} Qe8 {[%emt 0:01:08]} 31. Qxe8+ {[%emt 0:00:36]} Bxe8 {[%emt 0:00:14]} 32. Bxf5 {[%emt 0:00:10]} Bg6 {[%emt 0:00:16]} 33. Bxg6 {[%emt 0:00:46]} hxg6 {[%emt 0:00:08]} 34. Re1 {[%emt 0:00:10]} Kf7 {[%emt 0:00:36]} 35. Re6 {[%emt 0:01:03]} Be7 {[%emt 0:01:22]} 36. Re2 {[%emt 0:00:17]} Bf6 {[%emt 0:01:34]} 37. Re6 {[%emt 0:00:18]} Be5 {[%emt 0:02:52]} 38. f4 {[%emt 0:00:15]} Bxc3 {[%emt 0:00:41]} 39. Rxd6 {[%emt 0:00:09]} Rxa2+ {[%emt 0:00:40]} 40. Kh3 {[%emt 0:00:43]} Rb2 {[%emt 0:01:07]} 41. Rb6 {[%emt 0:16:13]} Rxb3 {[%emt 0:15:34]} 42. Rxb7+ {[%emt 0:00:13]} Kf6 {[%emt 0:01:50]} 43. Kg4 {[%emt 0:01:03]} Be1 {[%emt 0:01:05]} 44. Rb6+ {[%emt 0:00:15]} Kg7 {[%emt 0:00:19]} 45. Rb7+ {[%emt 0:00:15]} Kh6 {[%emt 0:00:47]} 46. f5 {[%emt 0:00:52]} Rxg3+ {[%emt 0:03:58]} 47. Kf4 {[%emt 0:00:16]} gxf5 {[%emt 0:00:02]} 1/2-1/2

[Event "GER-ch Youth-U12 2022"]
[Site "Willingen"]
[Date "2022.06.09"]
[Round "7.16"]
[White "Albrecht, Neil"]
[Black "Martin Fernandez, Rafael"]
[Result "1/2-1/2"]
[ECO "B90"]
[WhiteElo "1376"]
[BlackElo "1678"]
[Annotator "NA RC COMBH"]
[PlyCount "108"]
[EventDate "2022.06.05"]
[EventType "swiss"]
[EventRounds "9"]
[EventCountry "GER"]
[SourceTitle "playchess.com"]
[Source "ChessBase"]
[SourceQuality "1"]
[TimeControl "40/4500+30:900+30"]

1. e4 {[%emt 0:00:00]} c5 {[%emt 0:00:00]} 2. Nf3 {[%emt 0:00:00]} d6 {[%emt 0:00:00]} 3. d4 {[%emt 0:00:00]} cxd4 {[%emt 0:00:00]} 4. Nxd4 {[%emt 0:00:00]} Nf6 {[%emt 0:00:00]} 5. Nc3 {[%emt 0:00:00]} a6 {[%emt 0:00:00]} 6. Be2 {[%emt 0:00:00]} e5 {[%emt 0:00:00]} 7. Nb3 {[%emt 0:00:00]} Be7 {[%emt 0:00:00]} 8. Be3 {[%emt 0:00:00]} Be6 {[%emt 0:00:00]} 9. Nd5 {[%emt 0:00:00]} Bxd5 {[%emt 0:00:00]} 10. exd5 {[%emt 0:00:00]} Nbd7 {[%emt 0:00:00]} 11. f3 {[%emt 0:06:09]} Rc8 {[%emt 0:00:00]} 12. c4 {[%emt 0:00:47]} O-O {[%emt 0:00:00]} 13. Qd2 {[%emt 0:17:38]} Ne8 {[%emt 0:04:07]} 14. O-O {[%emt 0:09:09]} f5 {[%emt 0:03:24]} 15. f4 {[%emt 0:06:24]} g6 {[%emt 0:06:36]} 16. g3 {[%emt 0:03:21]} Bf6 {[%emt 0:01:39]} 17. Rac1 {[%emt 0:00:49]} b6 {[%emt 0:01:24]} 18. Kh1 {[%emt 0:01:58]} a5 {[%emt 0:01:26]} 19. a4 {[%emt 0:01:28]} Nc5 {[%emt 0:03:27]} 20. Nxc5 {[%emt 0:03:27]} bxc5 {[%emt 0:00:07]} 21. fxe5 {[%emt 0:02:14]} Bxe5 {[%emt 0:00:13]} 22. Bf4 {[%emt 0:01:23]} Bxf4 {[%emt 0:00:59]} 23. Rxf4 {[%emt 0:02:07]} Nf6 {[%emt 0:01:04]} 24. g4 {[%emt 0:06:06]} Nxg4 {[%emt 0:02:27]} 25. Bxg4 {[%emt 0:01:29]} fxg4 {[%emt 0:00:06]} 26. Rxg4 {[%emt 0:00:59]} Qd7 {[%emt 0:01:34]} 27. Rcg1 {[%emt 0:03:26]} Qf5 {[%emt 0:06:26]} 28. Qxa5 {[%emt 0:02:10]} Qf3+ {[%emt 0:00:20]} 29. R4g2 {[%emt 0:00:05]} Ra8 {[%emt 0:04:01]} 30. Qe1 {[%emt 0:02:05]} Rfe8 {[%emt 0:00:47]} 31. Qg3 {[%emt 0:00:40]} Qxg3 {[%emt 0:00:17]} 32. Rxg3 {[%emt 0:00:26]} Rxa4 {[%emt 0:00:06]} 33. b3 {[%emt 0:00:39]} Rb4 {[%emt 0:00:19]} 34. Ra1 {[%emt 0:04:29]} Re7 {[%emt 0:02:22]} 35. Ra6 {[%emt 0:00:17]} Rd7 {[%emt 0:00:08]} 36. Rf3 {[%emt 0:00:21]} Kg7 {[%emt 0:00:13]} 37. Kg2 {[%emt 0:00:25]} g5 {[%emt 0:01:42]} 38. Kg3 {[%emt 0:01:31]} Rb8 {[%emt 0:02:17]} 39. h3 {[%emt 0:00:54]} Kg6 {[%emt 0:02:31]} 40. Kg2 {[%emt 0:01:35]} Re8 {[%emt 0:04:19]} 41. Rb6 {[%emt 0:15:30]} h5 {[%emt 0:19:41]} 42. b4 {[%emt 0:09:18]} cxb4 {[%emt 0:01:03]} 43. Rxb4 {[%emt 0:00:00]} Re2+ {[%emt 0:00:00]} 44. Rf2 {[%emt 0:00:00]} Rxf2+ {[%emt 0:00:00]} 45. Kxf2 {[%emt 0:00:00]} Kf5 {[%emt 0:00:00]} 46. Kf3 {[%emt 0:00:00]} Rc7 {[%emt 0:00:00]} 47. Rb6 {[%emt 0:00:00]} Ke5 {[%emt 0:00:00]} 48. Rc6 {[%emt 0:00:00]} Ra7 {[%emt 0:00:00]} 49. c5 {[%emt 0:00:00]} Rf7+ {[%emt 0:00:00]} 50. Kg3 {[%emt 0:00:00]} Kxd5 {[%emt 0:00:00]} 51. Rxd6+ {[%emt 0:00:00]} Kxc5 {[%emt 0:00:20]} 52. Rh6 {[%emt 0:00:00]} Rg7 {[%emt 0:00:00]} 53. Rxh5 {[%emt 0:00:00]} Kd6 {[%emt 0:00:00]} 54. Kg4 {[%emt 0:00:00]} Ke7 {[%emt 0:00:00]} 1/2-1/2

[Event "GER-ch Youth-U12 2022"]
[Site "Willingen"]
[Date "2022.06.09"]
[Round "7.17"]
[White "Mandalka, Justus"]
[Black "Gavrylyuk, Oleksandr"]
[Result "1-0"]
[ECO "D60"]
[WhiteElo "1402"]
[BlackElo "1272"]
[Annotator "NA RC COMBH"]
[PlyCount "93"]
[EventDate "2022.06.05"]
[EventType "swiss"]
[EventRounds "9"]
[EventCountry "GER"]
[SourceTitle "playchess.com"]
[Source "ChessBase"]
[SourceQuality "1"]
[TimeControl "40/4500+30:900+30"]

1. d4 {[%emt 0:00:00]} d5 {[%emt 0:00:00]} 2. c4 {[%emt 0:00:00]} c6 {[%emt 0:00:00]} 3. Nc3 {[%emt 0:00:00]} e6 {[%emt 0:00:00]} 4. Nf3 {[%emt 0:00:00]} Nf6 {[%emt 0:00:00]} 5. Bg5 {[%emt 0:00:00]} Nbd7 {[%emt 0:00:00]} 6. e3 {[%emt 0:00:00]} Be7 {[%emt 0:00:00]} 7. Bd3 {[%emt 0:00:00]} dxc4 {[%emt 0:00:00]} 8. Bxc4 {[%emt 0:00:00]} b5 {[%emt 0:00:00]} 9. Bd3 {[%emt 0:00:00]} a6 {[%emt 0:00:00]} 10. O-O {[%emt 0:00:00]} O-O {[%emt 0:00:00]} 11. a4 {[%emt 0:00:00]} Bb7 {[%emt 0:00:00]} 12. axb5 {[%emt 0:00:00]} cxb5 {[%emt 0:00:00]} 13. Qe2 {[%emt 0:00:00]} Nb6 {[%emt 0:00:00]} 14. e4 {[%emt 0:04:20]} Rc8 {[%emt 0:03:56]} 15. Na2 {[%emt 0:16:18]} h6 {[%emt 0:03:13]} 16. Bd2 {[%emt 0:00:55]} Nc4 {[%emt 0:01:08]} 17. Bc3 {[%emt 0:00:28]} Re8 {[%emt 0:01:55]} 18. Nc1 {[%emt 0:05:13]} Bf8 {[%emt 0:03:19]} 19. Nb3 {[%emt 0:00:58]} Rc6 {[%emt 0:03:35]} 20. Bxc4 {[%emt 0:00:26]} Rxc4 {[%emt 0:04:34]} 21. Na5 {[%emt 0:00:38]} Rc7 {[%emt 0:03:52]} 22. Nxb7 {[%emt 0:00:31]} Rxb7 {[%emt 0:00:28]} 23. Rxa6 {[%emt 0:00:19]} b4 {[%emt 0:01:12]} 24. Bd2 {[%emt 0:00:10]} g6 {[%emt 0:05:53]} 25. Rfa1 {[%emt 0:04:14]} Bg7 {[%emt 0:02:11]} 26. Qd3 {[%emt 0:04:48]} Qb8 {[%emt 0:03:05]} 27. Be3 {[%emt 0:03:26]} Rc8 {[%emt 0:03:06]} 28. h3 {[%emt 0:02:08]} b3 {[%emt 0:02:55]} 29. Bd2 {[%emt 0:02:20]} Kh7 {[%emt 0:07:54]} 30. Bc3 {[%emt 0:01:36]} Rbc7 {[%emt 0:03:04]} 31. Ne5 {[%emt 0:01:58]} Qb7 {[%emt 0:03:35]} 32. f3 {[%emt 0:00:46]} Bf8 {[%emt 0:01:57]} 33. R6a4 {[%emt 0:00:36]} Kg8 {[%emt 0:02:48]} 34. g4 {[%emt 0:07:40]} Nd7 {[%emt 0:00:57]} 35. Nxd7 {[%emt 0:00:26]} Rxd7 {[%emt 0:00:14]} 36. Qa6 {[%emt 0:03:49]} Qc7 {[%emt 0:00:49]} 37. e5 {[%emt 0:01:07]} Qd8 {[%emt 0:03:00]} 38. Kg2 {[%emt 0:02:39]} Rdc7 {[%emt 0:00:55]} 39. Qe2 {[%emt 0:04:33]} Qd7 {[%emt 0:02:41]} 40. Ra6 {[%emt 0:01:44]} Bb4 {[%emt 0:00:58]} 41. Bxb4 {[%emt 0:15:49]} Rc2 {[%emt 0:15:18]} 42. Bd2 {[%emt 0:00:05]} Qxd4 {[%emt 0:00:27]} 43. Rd6 {[%emt 0:00:47]} Rxd2 {[%emt 0:00:39]} 44. Qxd2 {[%emt 0:00:07]} Qxe5 {[%emt 0:01:11]} 45. Rd8+ {[%emt 0:00:06]} Rxd8 {[%emt 0:00:11]} 46. Qxd8+ {[%emt 0:00:05]} Kg7 {[%emt 0:00:15]} 47. Qd2 {[%emt 0:00:17]} 1-0